lending/lending_fUSD_20240120
["ID","MTS","AMOUNT","RATE_DAILY","PERIOD"]
[312269266,1705727442925,-529.64,0.00024657,2]
[312269267,1705727442935,-155.66252539,0.00024657,2]
[312269268,1705727442945,-500.0,0.00024657,2]
[312269269,1705727442954,-500.0,0.00024657,2]
[312269270,1705727442963,-508.19750073,0.00024657,2]
[312269271,1705727442973,-667.68,0.00024657,2]
[312269272,1705727442982,-500.0,0.00024657,2]
[312269273,1705727442991,-500.0,0.00024657,2]
[312269274,1705727443000,-500.0,0.00024657,2]
[312269275,1705727443010,-599.79,0.00024657,2]
[312269276,1705727443021,-500.0,0.00024657,2]
[312269277,1705727443031,-500.0,0.00024657,2]
[312269278,1705727443041,-500.0,0.00024657,2]
[312269279,1705727443050,-500.0,0.00024657,2]
[312269280,1705727443061,-500.0,0.00024657,2]
[312269281,1705727443070,-763.14,0.00024657,2]
[312269282,1705727443079,-500.0,0.00024657,2]
[312269283,1705727443089,-500.0,0.00024657,2]
[312269284,1705727443098,-634.28113789,0.00024657,2]
[312269285,1705727443108,-500.0,0.00024657,2]
[312269286,1705727443118,-500.0,0.00024657,2]
[312269287,1705727443128,-500.0,0.00024657,2]
[312269288,1705727443137,-500.0,0.00024657,2]
[312269289,1705727443147,-500.0,0.00024657,2]
[312269290,1705727443157,-500.0,0.00024657,2]
[312269291,1705727443169,-500.0,0.00024657,2]
[312269292,1705727443179,-500.0,0.00024657,2]
[312269293,1705727443189,-107.99532062,0.00024657,2]
[312269295,1705727443210,-575.68564508,0.00024657,2]
[312269296,1705727443241,-362.33147767,0.00024657,2]
[312269297,1705727443253,-418.73072379,0.00024657,2]
[312269298,1705727443265,-41.56683284,0.00024657,2]
[312269299,1705727443275,-462.6216874,0.00024657,2]
[312269300,1705727443284,-500.0,0.00024657,2]
[312269301,1705727443294,-500.0,0.00024657,2]
[312269302,1705727443303,-500.0,0.00024657,2]
[312269303,1705727443313,-759.80681133,0.00024657,2]
[312269304,1705727443352,-253.98318867,0.00024657,2]
[312269305,1705727443361,-500.0,0.00024657,2]
[312269306,1705727443371,-1022.06,0.00024657,2]
[312269307,1705727443381,-500.0,0.00024657,2]
[312269308,1705727443390,-500.0,0.00024657,2]
[312269309,1705727443400,-500.0,0.00024657,2]
[312269310,1705727443410,-500.0,0.00024657,2]
[312269311,1705727443419,-500.0,0.00024657,2]
[312269312,1705727443428,-55.78610089,0.00024657,2]
[312269313,1705727443440,-444.21389911,0.00024657,2]
[312269314,1705727443450,-500.0,0.00024657,2]
[312269315,1705727443459,-17.19264633,0.00024657,2]
[312269316,1705727443968,-325.68234284,0.00024657,2]
[312269317,1705727443980,-157.12501083,0.00024657,2]
[312269318,1705727444046,-500.0,0.00024657,2]
[312269319,1705727444055,-500.0,0.00024657,2]
[312269320,1705727444064,-500.0,0.00024657,2]
[312269321,1705727444074,-500.0,0.00024657,2]
[312269322,1705727444084,-500.0,0.00024657,2]
[312269323,1705727444093,-2183.3,0.00024657,2]
[312269324,1705727444103,-5.8642449,0.00024657,2]
[312269325,1705727444114,-355.12996767,0.00024657,2]
[312269326,1705727444126,-139.00578743,0.00024657,2]
[312269327,1705727444134,-500.0,0.00024657,2]
[312269328,1705727444144,-500.0,0.00024657,2]
[312269329,1705727444153,-500.0,0.00024657,2]
[312269330,1705727444162,-375.52847094,0.00024657,2]
[312269331,1705727444174,-124.47152906,0.00024657,2]
[312269332,1705727444183,-345.02847129,0.00024657,2]
[312269333,1705727444194,-309.04679903,0.00024657,2]
[312269334,1705727444206,-668.16681472,0.00024657,2]
[312269335,1705727444217,-1659.27791496,0.00024657,2]
[312269336,1705727444226,-500.0,0.00024657,2]
[312269337,1705727444235,-500.0,0.00024657,2]
[312269338,1705727444244,-22.70291827,0.00024657,2]
[312269339,1705727444256,-477.29708173,0.00024657,2]
[312269340,1705727444265,-285.96048937,0.00024657,2]
[312269341,1705727444282,-214.03951063,0.00024657,2]
[312269342,1705727444291,-500.0,0.00024657,2]
[312269343,1705727444300,-500.0,0.00024657,2]
[312269344,1705727444310,-500.0,0.00024657,2]
[312269345,1705727444319,-500.0,0.00024657,2]
[312269346,1705727444328,-500.0,0.00024657,2]
[312269347,1705727444338,-513.38470777,0.00024657,2]
[312269348,1705727444347,-500.0,0.00024657,2]
[312269349,1705727444356,-500.0,0.00024657,2]
[312269350,1705727444366,-500.0,0.00024657,2]
[312269351,1705727444376,-500.0,0.00024657,2]
[312269352,1705727444385,-500.0,0.00024657,2]
[312269353,1705727444394,-1262.78,0.00024657,2]
[312269354,1705727444405,-466.00071921,0.00024657,2]
[312269355,1705727444415,-500.0,0.00024657,2]
[312269356,1705727444424,-528.63,0.00024657,2]
[312269357,1705727444433,-500.0,0.00024657,2]
[312269358,1705727444443,-480.2910071,0.00024657,2]
[312269359,1705727444452,-759.11,0.00024657,2]
[312269360,1705727444461,-500.0,0.00024657,2]
[312269361,1705727444470,-500.0,0.00024657,2]
[312269362,1705727444481,-500.0,0.00024657,2]
[312269363,1705727444490,-1103.95,0.00024657,2]
[312269364,1705727444499,-618.02,0.00024657,2]
[312269365,1705727444508,-500.0,0.00024657,2]
[312269366,1705727444517,-600.18,0.00024657,2]
[312269367,1705727444528,-500.0,0.00024657,2]
[312269368,1705727444537,-500.0,0.00024657,2]
[312269369,1705727444547,-500.0,0.00024657,2]
[312269370,1705727444556,-500.0,0.00024657,2]
[312269371,1705727444566,-500.0,0.00024657,2]
[312269372,1705727444575,-500.0,0.00024657,2]
[312269373,1705727444585,-500.0,0.00024657,2]
[312269374,1705727444596,-500.0,0.00024657,2]
[312269375,1705727444606,-420.7027647,0.00024657,2]
[312269376,1705727444618,-79.2972353,0.00024657,2]
[312269377,1705727444628,-218.10104637,0.00024657,2]
[312269378,1705727444843,-281.89895363,0.00024657,2]
[312269379,1705727444852,-4.93781801,0.00024657,2]
[312269380,1705727444864,-495.06218199,0.00024657,2]
[312269381,1705727444873,-500.0,0.00024657,2]
[312269382,1705727444882,-471.02564033,0.00024657,2]
[312269383,1705727444898,-28.97435967,0.00024657,2]
[312269384,1705727444907,-331.23564033,0.00024657,2]
[312269385,1705727444919,-168.76435967,0.00024657,2]
[312269386,1705727444928,-687.77438857,0.00024657,2]
[312269387,1705727445111,-213.95561143,0.00024657,2]
[312269388,1705727445121,-500.0,0.00024657,2]
[312269389,1705727445130,-51.68836715,0.00024657,2]
[312269390,1705727445146,-448.31163285,0.00024657,2]
[312269391,1705727445155,-500.0,0.00024657,2]
[312269392,1705727445165,-512.25999308,0.00024657,2]
[312269393,1705727445174,-500.0,0.00024657,2]
[312269394,1705727445183,-194.46298586,0.00024657,2]
[312269395,1705727445195,-305.53701414,0.00024657,2]
[312269396,1705727445205,-24.69699507,0.00024657,2]
[312269397,1705727445218,-366.25687589,0.00024657,2]
[312269398,1705727445227,-503.62316474,0.00024657,2]
[312269399,1705727445236,-500.0,0.00024657,2]
[312269400,1705727445246,-318.65414704,0.00024657,2]
[312269401,1705727445278,-181.34585296,0.00024657,2]
[312269402,1705727445287,-500.0,0.00024657,2]
[312269403,1705727445296,-107.31564806,0.00024657,2]
[312269404,1705727445307,-392.68435194,0.00024657,2]
[312269405,1705727445317,-500.0,0.00024657,2]
[312269406,1705727445327,-500.0,0.00024657,2]
[312269407,1705727445337,-500.0,0.00024657,2]
[312269408,1705727445346,-1222.53,0.00024657,2]
[312269409,1705727445355,-500.0,0.00024657,2]
[312269410,1705727445365,-500.0,0.00024657,2]
[312269411,1705727445374,-232.76564806,0.00024657,2]
[312269412,1705727446398,-342.54398161,0.00024656,2]
[312269413,1705727446410,-2001.74290219,0.00024656,2]
[312269414,1705727446420,-267.23435194,0.00024657,2]
[312269415,1705727446430,-500.0,0.00024657,2]
[312269416,1705727446440,-500.0,0.00024657,2]
[312269417,1705727446451,-500.0,0.00024657,2]
[312269418,1705727446461,-500.0,0.00024657,2]
[312269419,1705727446472,-500.0,0.00024657,2]
[312269420,1705727446482,-500.0,0.00024657,2]
[312269421,1705727446492,-531.52,0.00024657,2]
[312269422,1705727446502,-805.99,0.00024657,2]
[312269423,1705727446511,-500.0,0.00024657,2]
[312269424,1705727446521,-500.0,0.00024657,2]
[312269425,1705727446531,-4530.35,0.00024657,2]
[312269426,1705727446540,-500.0,0.00024657,2]
[312269427,1705727446550,-500.0,0.00024657,2]
[312269428,1705727446559,-500.0,0.00024657,2]
[312269429,1705727446569,-844.98,0.00024657,2]
[312269430,1705727446578,-500.0,0.00024657,2]
[312269431,1705727446587,-500.0,0.00024657,2]
[312269432,1705727446597,-500.0,0.00024657,2]
[312269433,1705727446606,-500.0,0.00024657,2]
[312269434,1705727446616,-516.23,0.00024657,2]
[312269435,1705727446626,-512.40262159,0.00024657,2]
[312269436,1705727446636,-500.0,0.00024657,2]
[312269437,1705727446645,-500.0,0.00024657,2]
[312269438,1705727446655,-500.0,0.00024657,2]
[312269439,1705727446666,-500.0,0.00024657,2]
[312269440,1705727446675,-500.0,0.00024657,2]
[312269441,1705727446687,-509.97229709,0.00024657,2]
[312269442,1705727446699,-334.1876376,0.00024657,2]
[312269443,1705727446716,-319.2723624,0.00024657,2]
[312269444,1705727446726,-500.0,0.00024657,2]
[312269445,1705727446737,-500.0,0.00024657,2]
[312269446,1705727446748,-500.0,0.00024657,2]
[312269447,1705727446758,-347.9736376,0.00024657,2]
[312269448,1705727446771,-152.0263624,0.00024657,2]
[312269449,1705727446781,-500.0,0.00024657,2]
[312269450,1705727446791,-437.04186567,0.00024657,2]
[312269451,1705727446802,-62.95813433,0.00024657,2]
[312269452,1705727446812,-500.0,0.00024657,2]
[312269453,1705727446822,-626.89,0.00024657,2]
[312269454,1705727446831,-500.0,0.00024657,2]
[312269455,1705727446842,-4680.43,0.00024657,2]
[312269456,1705727446851,-500.0,0.00024657,2]
[312269457,1705727446862,-148.36125994,0.00024657,2]
[312269458,1705727446882,-353.05874006,0.00024657,2]
[312269460,1705727446892,-500.0,0.00024657,2]
[312269462,1705727446902,-648.12,0.00024657,2]
[312269463,1705727446913,-581.33,0.00024657,2]
[312269464,1705727446923,-500.0,0.00024657,2]
[312269465,1705727446932,-500.0,0.00024657,2]
[312269466,1705727446942,-384.18885641,0.00024657,2]
[312269467,1705727446960,-116.41892585,0.00024657,2]
[312269468,1705727446971,-500.0,0.00024657,5]
[312269469,1705727446981,-155.36507647,0.00024657,2]
[312269470,1705727447128,-344.63492353,0.00024657,2]
[312269471,1705727447138,-500.0,0.00024657,2]
[312269472,1705727447148,-781.88,0.00024657,2]
[312269473,1705727447158,-536.91592014,0.00024657,2]
[312269474,1705727447168,-648.33309312,0.00024657,2]
[312269475,1705727447178,-500.0,0.00024657,2]
[312269476,1705727447188,-877.17,0.00024657,2]
[312269477,1705727447197,-500.0,0.00024657,2]
[312269478,1705727447208,-500.0,0.00024657,2]
[312269479,1705727447218,-486.0844348,0.00024657,2]
[312269480,1705727447228,-801.21,0.00024657,2]
[312269481,1705727447239,-500.0,0.00024657,2]
[312269482,1705727447250,-500.0,0.00024657,2]
[312269483,1705727447259,-500.0,0.00024657,2]
[312269484,1705727447270,-500.0,0.00024657,2]
[312269485,1705727447279,-500.0,0.00024657,2]
[312269486,1705727447290,-500.0,0.00024657,2]
[312269487,1705727447300,-500.0,0.00024657,2]
[312269488,1705727447309,-712.45,0.00024657,2]
[312269489,1705727447319,-500.0,0.00024657,2]
[312269490,1705727447328,-500.0,0.00024657,2]
[312269491,1705727447338,-598.13,0.00024657,2]
[312269492,1705727447348,-500.0,0.00024657,2]
[312269493,1705727447357,-500.0,0.00024657,2]
[312269494,1705727447367,-500.0,0.00024657,2]
[312269495,1705727447377,-500.0,0.00024657,2]
[312269496,1705727447387,-500.0,0.00024657,2]
[312269497,1705727447397,-1134.84,0.00024657,2]
[312269498,1705727447407,-500.0,0.00024657,2]
[312269499,1705727447418,-500.0,0.00024657,2]
[312269500,1705727447428,-500.0,0.00024657,2]
[312269501,1705727447438,-500.0,0.00024657,2]
[312269502,1705727447448,-500.0,0.00024657,2]
[312269503,1705727447457,-316.60040164,0.00024657,2]
[312269514,1705727499050,268.155603,0.00031,120]
[312269517,1705727551279,837.05291396,0.00023278,2]
[312269518,1705727551300,2000.0,0.00023278,2]
[312269519,1705727551322,2000.0,0.00023278,2]
[312269520,1705727551343,162.94708604,0.00023278,2]
[312269521,1705727557126,604.99,0.0002192,2]
[312269522,1705728029097,640.03,0.0002,2]
[312269523,1705728059278,574.74,0.00021646,2]
[312269526,1705728414902,17.29291396,0.00021646,2]
[312269527,1705728414923,452.16492305,0.00021646,2]
[312269533,1705728484472,206.0,0.00022527,2]
[312269536,1705728541888,546.0,0.00021481,2]
[312269557,1705728631917,-1305.48,0.00023365,2]
[312269559,1705728631927,-1000.0,0.00023369,2]
[312269562,1705728631937,-6517.31972432,0.00023391,2]
[312269564,1705728631946,-2914.42,0.00023395,2]
[312269566,1705728631955,-176.09,0.00023399,2]
[312269567,1705728631964,-468.78,0.00023399,2]
[312269568,1705728631973,-527.3,0.00023462,2]
[312269569,1705728631981,-161.92690051,0.00023685,2]
[312269570,1705728631991,-546.0,0.00023745,2]
[312269571,1705728632000,-160.26,0.00023761,2]
[312269572,1705728632009,-163.02,0.00023843,2]
[312269573,1705728632018,-160.26,0.00023912,2]
[312269574,1705728632029,-2500.93243878,0.00023915,2]
[312269575,1705728632039,-600.31510695,0.00024,2]
[312269576,1705728632051,-160.26,0.00024062,2]
[312269577,1705728632061,-151.52,0.00024078,2]
[312269578,1705728632070,-415.73,0.00024078,2]
[312269579,1705728632079,-161.92690048,0.0002415,2]
[312269580,1705728632088,-162.54,0.00024191,2]
[312269581,1705728632099,-160.26,0.00024212,2]
[312269582,1705728632108,-160.26,0.00024362,2]
[312269583,1705728632117,-160.26,0.00024512,2]
[312269584,1705728632130,-1097.97293708,0.00024555,4]
[312269585,1705728632140,-3712.39551535,0.00024555,4]
[312269586,1705728632149,-12240.31559135,0.00024556,2]
[312269587,1705728632158,-2557.3714,0.00024557,2]
[312269588,1705728632169,-500.0,0.00024557,2]
[312269589,1705728632179,-9927.1408,0.00024557,2]
[312269590,1705728632189,-1000.0,0.00024557,2]
[312269591,1705728632197,-5000.0,0.00024557,2]
[312269592,1705728632207,-41028.5162,0.00024557,2]
[312269593,1705728632217,-468.78,0.00024569,2]
[312269594,1705728632226,-161.92690048,0.00024615,2]
[312269595,1705728632237,-618.88607346,0.00024625,3]
[312269596,1705728632246,-202.17519986,0.00024625,3]
[312269597,1705728632254,-1000.0,0.00024625,3]
[312269598,1705728632264,-527.3,0.00024635,2]
[312269599,1705728632273,-2721.20726241,0.00024655,2]
[312269600,1705728632282,-155.42962962,0.00024655,2]
[312269601,1705728632292,-406.99277978,0.00024656,2]
[312269602,1705728632301,-293.11411922,0.00024656,2]
[312269605,1705728632318,-419.06988075,0.00024656,2]
[312269607,1705728632327,-612.98694876,0.00024656,2]
[312269622,1705728632461,-1149.55174601,0.00024656,2]
[312269624,1705728632470,-551.41525151,0.00024656,5]
[312269625,1705728632480,-150.0,0.00024656,2]
[312269627,1705728632489,-470.10590261,0.00024657,2]
[312269629,1705728632499,-1227.85,0.00024657,2]
[312269632,1705728632509,-500.0,0.00024657,2]
[312269634,1705728632519,-500.0,0.00024657,2]
[312269635,1705728632529,-500.0,0.00024657,2]
[312269638,1705728632539,-500.0,0.00024657,2]
[312269639,1705728632550,-500.0,0.00024657,2]
[312269642,1705728632561,-648.52843584,0.00024657,2]
[312269644,1705728632571,-500.0,0.00024657,2]
[312269646,1705728632580,-500.0,0.00024657,2]
[312269648,1705728632590,-303.19282818,0.00024657,2]
[312269652,1705728632618,-196.80717182,0.00024657,2]
[312269654,1705728632627,-500.0,0.00024657,2]
[312269655,1705728632637,-423.51775195,0.00024657,2]
[312269656,1705728632649,-76.48224805,0.00024657,2]
[312269657,1705728632659,-500.0,0.00024657,2]
[312269658,1705728632667,-500.0,0.00024657,2]
[312269659,1705728632679,-525.76530499,0.00024657,2]
[312269660,1705728632689,-607.39,0.00024657,2]
[312269661,1705728632699,-500.0,0.00024657,2]
[312269662,1705728632708,-588.69763219,0.00024657,2]
[312269663,1705728632718,-500.0,0.00024657,2]
[312269664,1705728632727,-500.0,0.00024657,2]
[312269665,1705728632736,-567.58619532,0.00024657,2]
[312269666,1705728632745,-500.0,0.00024657,2]
[312269667,1705728632755,-500.0,0.00024657,2]
[312269668,1705728632765,-514.75037834,0.00024657,2]
[312269669,1705728632775,-500.0,0.00024657,2]
[312269670,1705728632785,-500.0,0.00024657,2]
[312269671,1705728632794,-239.67945294,0.00024657,2]
[312269672,1705728632807,-260.32054706,0.00024657,2]
[312269673,1705728632817,-500.0,0.00024657,2]
[312269674,1705728632826,-500.0,0.00024657,2]
[312269675,1705728632836,-500.0,0.00024657,2]
[312269676,1705728632846,-500.0,0.00024657,2]
[312269677,1705728632855,-500.0,0.00024657,2]
[312269678,1705728632865,-500.0,0.00024657,2]
[312269679,1705728632875,-98.35072768,0.00024657,2]
[312269680,1705728632887,-479.67754003,0.00024657,2]
[312269681,1705728632896,-99.09631113,0.00024657,2]
[312269693,1705728637981,-400.90368887,0.00024657,2]
[312269694,1705728637991,-500.0,0.00024657,2]
[312269695,1705728638000,-500.0,0.00024657,2]
[312269696,1705728638009,-644.33482381,0.00024657,2]
[312269697,1705728638018,-500.0,0.00024657,2]
[312269698,1705728638028,-500.0,0.00024657,2]
[312269699,1705728638038,-483.93808991,0.00024657,2]
[312269700,1705728638048,-500.0,0.00024657,2]
[312269701,1705728638063,-441.73224653,0.00024657,2]
[312269702,1705728638075,-113.76775347,0.00024657,2]
[312269703,1705728638084,-500.0,0.00024657,2]
[312269704,1705728638094,-500.0,0.00024657,2]
[312269705,1705728638104,-500.0,0.00024657,2]
[312269706,1705728638113,-500.0,0.00024657,2]
[312269707,1705728638123,-551.28957312,0.00024657,2]
[312269708,1705728638133,-500.0,0.00024657,2]
[312269709,1705728638143,-500.0,0.00024657,2]
[312269710,1705728638152,-500.0,0.00024657,2]
[312269711,1705728638161,-500.0,0.00024657,2]
[312269712,1705728638170,-500.0,0.00024657,2]
[312269713,1705728638179,-601.46980042,0.00024657,2]
[312269714,1705728638190,-500.0,0.00024657,2]
[312269715,1705728638198,-500.0,0.00024657,2]
[312269716,1705728638208,-500.0,0.00024657,2]
[312269717,1705728638216,-614.39360977,0.00024657,2]
[312269718,1705728638226,-500.0,0.00024657,2]
[312269719,1705728638235,-500.0,0.00024657,2]
[312269720,1705728638244,-500.0,0.00024657,2]
[312269721,1705728638253,-500.0,0.00024657,2]
[312269722,1705728638263,-531.9769657,0.00024657,2]
[312269723,1705728638272,-544.81822637,0.00024657,2]
[312269724,1705728638281,-500.0,0.00024657,2]
[312269725,1705728638291,-213.21483832,0.00024657,2]
[312269726,1705728638303,-286.78516168,0.00024657,2]
[312269727,1705728638312,-500.0,0.00024657,2]
[312269728,1705728638322,-519.43280369,0.00024657,2]
[312269729,1705728638330,-47.61841215,0.00024657,2]
[312269730,1705728638354,-452.38158785,0.00024657,2]
[312269731,1705728638363,-401.51419686,0.00024657,2]
[312269732,1705728638372,-111.32053295,0.00024657,2]
[312269733,1705728638397,-388.67946705,0.00024657,2]
[312269734,1705728638406,-500.0,0.00024657,2]
[312269735,1705728638415,-129.13408805,0.00024657,2]
[312269736,1705728638427,-370.86591195,0.00024657,2]
[312269737,1705728638437,-478.01738106,0.00024657,2]
[312269738,1705728638446,-163.01064163,0.00024657,2]
[312269739,1705728638455,-512.50343573,0.00024657,2]
[312269740,1705728638465,-177.70060814,0.00024657,2]
[312269741,1705728638474,-500.0,0.00024657,2]
[312269742,1705728638483,-517.24197804,0.00024657,2]
[312269743,1705728638494,-500.0,0.00024657,2]
[312269744,1705728638502,-172.9908456,0.00024657,2]
[312269745,1705728638511,-500.0,0.00024657,2]
[312269746,1705728638520,-500.0,0.00024657,2]
[312269747,1705728638529,-500.0,0.00024657,2]
[312269748,1705728638538,-500.0,0.00024657,2]
[312269749,1705728638547,-500.0,0.00024657,2]
[312269750,1705728638557,-500.0,0.00024657,2]
[312269751,1705728638566,-422.42547887,0.00024657,2]
[312269752,1705728638575,-500.0,0.00024657,2]
[312269753,1705728638584,-137.39189798,0.00024657,2]
[312269776,1705728640534,-362.60810202,0.00024657,2]
[312269777,1705728640543,-39.05970511,0.00024657,2]
[312269778,1705728640555,-460.94029489,0.00024657,2]
[312269779,1705728640564,-500.0,0.00024657,2]
[312269780,1705728640574,-500.0,0.00024657,2]
[312269781,1705728640583,-500.0,0.00024657,2]
[312269782,1705728640592,-271.29047136,0.00024657,2]
[312269783,1705728640602,-500.0,0.00024657,2]
[312269784,1705728640611,-500.0,0.00024657,2]
[312269785,1705728640620,-500.0,0.00024657,2]
[312269786,1705728640629,-500.0,0.00024657,2]
[312269787,1705728640639,-500.0,0.00024657,2]
[312269788,1705728640648,-500.0,0.00024657,2]
[312269789,1705728640657,-500.0,0.00024657,2]
[312269790,1705728640666,-500.0,0.00024657,2]
[312269791,1705728640675,-500.0,0.00024657,2]
[312269792,1705728640685,-500.0,0.00024657,2]
[312269793,1705728640696,-500.0,0.00024657,2]
[312269794,1705728640705,-500.0,0.00024657,2]
[312269795,1705728640714,-500.0,0.00024657,2]
[312269796,1705728640723,-500.0,0.00024657,2]
[312269797,1705728640732,-500.0,0.00024657,2]
[312269798,1705728640742,-374.49979273,0.00024657,2]
[312269799,1705728640751,-500.0,0.00024657,2]
[312269800,1705728640761,-500.0,0.00024657,2]
[312269801,1705728640770,-500.0,0.00024657,2]
[312269802,1705728640779,-500.0,0.00024657,2]
[312269803,1705728640789,-500.0,0.00024657,2]
[312269804,1705728640799,-500.0,0.00024657,2]
[312269805,1705728640808,-500.0,0.00024657,2]
[312269806,1705728640817,-414.80557967,0.00024657,2]
[312269807,1705728640829,-46.96270488,0.00024657,2]
[312269808,1705728640839,-500.0,0.00024657,2]
[312269809,1705728640848,-518.56465883,0.00024657,2]
[312269810,1705728640858,-500.0,0.00024657,2]
[312269811,1705728640867,-500.0,0.00024657,2]
[312269812,1705728640876,-500.0,0.00024657,2]
[312269813,1705728640886,-500.0,0.00024657,2]
[312269814,1705728640894,-500.0,0.00024657,2]
[312269815,1705728640904,-500.0,0.00024657,2]
[312269816,1705728640914,-500.0,0.00024657,2]
[312269817,1705728640923,-500.0,0.00024657,2]
[312269818,1705728640932,-500.0,0.00024657,2]
[312269819,1705728640944,-500.0,0.00024657,2]
[312269820,1705728640952,-500.0,0.00024657,2]
[312269821,1705728640961,-500.0,0.00024657,2]
[312269822,1705728640970,-500.0,0.00024657,2]
[312269823,1705728640979,-510.45428535,0.00024657,2]
[312269824,1705728640988,-500.0,0.00024657,2]
[312269825,1705728640997,-500.0,0.00024657,2]
[312269826,1705728641006,-500.0,0.00024657,2]
[312269827,1705728641015,-537.49273832,0.00024657,2]
[312269828,1705728641024,-586.62305111,0.00024657,2]
[312269829,1705728641034,-500.0,0.00024657,2]
[312269830,1705728641043,-500.0,0.00024657,2]
[312269831,1705728641052,-500.0,0.00024657,2]
[312269832,1705728641061,-500.0,0.00024657,2]
[312269833,1705728641073,-500.0,0.00024657,2]
[312269834,1705728641082,-500.0,0.00024657,2]
[312269835,1705728641091,-500.0,0.00024657,2]
[312269836,1705728641100,-500.0,0.00024657,2]
[312269837,1705728641109,-500.0,0.00024657,2]
[312269838,1705728641119,-500.0,0.00024657,2]
[312269839,1705728641128,-500.0,0.00024657,2]
[312269840,1705728641137,-504.64154577,0.00024657,2]
[312269841,1705728641148,-538.00423212,0.00024657,2]
[312269842,1705728641158,-500.0,0.00024657,2]
[312269843,1705728641167,-500.0,0.00024657,2]
[312269844,1705728641176,-500.0,0.00024657,2]
[312269845,1705728641185,-500.0,0.00024657,2]
[312269846,1705728641196,-535.4306564,0.00024657,2]
[312269847,1705728641205,-500.0,0.00024657,2]
[312269848,1705728641214,-500.0,0.00024657,2]
[312269849,1705728641223,-500.0,0.00024657,2]
[312269850,1705728641232,-500.0,0.00024657,2]
[312269851,1705728641241,-486.05716456,0.00024657,2]
[312269852,1705728641250,-500.0,0.00024657,2]
[312269853,1705728641258,-500.0,0.00024657,2]
[312269854,1705728641267,-500.0,0.00024657,2]
[312269855,1705728641276,-500.0,0.00024657,2]
[312269856,1705728641286,-500.0,0.00024657,2]
[312269857,1705728641295,-500.0,0.00024657,2]
[312269858,1705728641303,-500.0,0.00024657,2]
[312269859,1705728641312,-500.0,0.00024657,2]
[312269860,1705728641321,-500.0,0.00024657,2]
[312269861,1705728641330,-500.0,0.00024657,2]
[312269862,1705728641339,-553.20090387,0.00024657,2]
[312269863,1705728641348,-500.0,0.00024657,2]
[312269864,1705728641357,-500.0,0.00024657,2]
[312269865,1705728641366,-500.0,0.00024657,2]
[312269866,1705728641376,-500.0,0.00024657,2]
[312269867,1705728641386,-500.0,0.00024657,2]
[312269868,1705728641395,-500.0,0.00024657,2]
[312269869,1705728641404,-500.0,0.00024657,2]
[312269870,1705728641414,-500.0,0.00024657,2]
[312269871,1705728641424,-500.0,0.00024657,2]
[312269872,1705728641433,-500.0,0.00024657,2]
[312269874,1705728641444,-500.0,0.00024657,2]
[312269876,1705728641453,-500.0,0.00024657,2]
[312269878,1705728641462,-500.0,0.00024657,2]
[312269880,1705728641471,-500.0,0.00024657,2]
[312269882,1705728641480,-500.0,0.00024657,2]
[312269884,1705728641489,-500.0,0.00024657,2]
[312269886,1705728641498,-500.0,0.00024657,2]
[312269887,1705728641507,-500.0,0.00024657,2]
[312269890,1705728641517,-500.0,0.00024657,2]